bitfinex/quotes_BTCUSD_20251029
["timestamp","ask_amount","ask_price","bid_price","bid_amount"]
[1761703381797,0.17845899,112610.0,112600.0,0.45619681]
[1761703382015,0.17845899,112610.0,112600.0,0.24109989]
[1761703382227,0.00085487,112610.0,112600.0,0.61605472]
[1761703382438,0.00085487,112610.0,112600.0,0.24109989]
[1761703382644,0.17845899,112610.0,112600.0,0.6427249]
[1761703382994,0.17845899,112610.0,112600.0,0.26777007]
[1761703383209,0.00085487,112610.0,112600.0,0.6427249]
[1761703383448,0.00085487,112610.0,112600.0,0.73254391]
[1761703384460,0.00085487,112610.0,112600.0,1.15664391]
[1761703384644,0.00085487,112610.0,112600.0,1.53159874]
[1761703385100,0.00085487,112610.0,112600.0,1.15664391]
[1761703386371,0.00085487,112610.0,112600.0,0.78168908]
[1761703387798,0.00085487,112610.0,112600.0,1.15664391]
[1761703388416,0.00085487,112610.0,112600.0,0.78168908]
[1761703388595,0.00085487,112610.0,112600.0,1.15664391]
[1761703389708,0.17845899,112610.0,112600.0,0.60406919]
[1761703389894,0.55341382,112610.0,112600.0,0.35187007]
[1761703390101,0.55341382,112610.0,112600.0,0.23154]
[1761703393124,0.64323283,112610.0,112600.0,0.14758]
[1761703393382,0.70365283,112610.0,112600.0,0.16906]
[1761703393605,0.73032555,112610.0,112600.0,0.16906]
[1761703393823,0.32498072,112610.0,112600.0,0.19077]
[1761703394052,0.61011654,112610.0,112600.0,0.12163]
[1761703394495,0.61111654,112610.0,112600.0,0.15308]
[1761703394717,0.61011654,112610.0,112600.0,0.15308]
[1761703394918,0.61111654,112610.0,112600.0,0.15308]
[1761703395861,0.17761989,112600.0,112590.0,0.01645]
[1761703396083,0.21497989,112600.0,112590.0,0.12212]
[1761703396327,0.58993472,112600.0,112590.0,0.12212]
[1761703396546,0.58993472,112600.0,112590.0,0.15357]
[1761703396785,0.61660896,112600.0,112590.0,0.15357]
[1761703397273,0.61660896,112600.0,112590.0,0.15457]
[1761703400438,0.59457896,112600.0,112590.0,0.15457]
[1761703400678,0.57924896,112600.0,112590.0,0.15457]
[1761703401327,0.57989017,112600.0,112590.0,0.15457]
[1761703403335,0.60192017,112600.0,112590.0,0.15457]
[1761703403556,0.61725017,112600.0,112590.0,0.15457]
[1761703404353,0.59522017,112600.0,112590.0,0.15457]
[1761703406255,0.69003217,112600.0,112590.0,0.001]
[1761703406470,1.095377,112600.0,112590.0,0.001]
[1761703406914,0.72042217,112600.0,112590.0,0.001]
[1761703407126,0.22026534,112600.0,112590.0,0.07012]
[1761703407346,0.57989017,112600.0,112590.0,0.06912]
[1761703407755,0.58189017,112600.0,112590.0,0.06912]
[1761703408194,0.61925017,112600.0,112590.0,0.03767]
[1761703410532,0.24429534,112600.0,112590.0,0.03767]
[1761703410750,0.20693534,112600.0,112590.0,0.06912]
[1761703410961,0.58189017,112600.0,112590.0,0.06912]
[1761703414016,0.20693534,112600.0,112590.0,0.06912]
[1761703414448,0.20693534,112600.0,112590.0,0.26451922]
[1761703414654,0.20693534,112600.0,112590.0,0.33071566]
[1761703415090,0.1802611,112600.0,112590.0,0.70567049]
[1761703415896,0.1782611,112600.0,112590.0,0.70567049]
[1761703416257,0.1792611,112600.0,112590.0,0.33071566]
[1761703416664,0.1792611,112600.0,112590.0,0.15308]
[1761703416874,0.1792611,112600.0,112590.0,0.17084356]
[1761703417133,0.1792611,112600.0,112590.0,0.34847922]
[1761703417287,0.1792611,112600.0,112590.0,0.15308]
[1761703417500,0.1792611,112600.0,112590.0,0.34847922]
[1761703417715,0.1792611,112600.0,112590.0,0.33071566]
[1761703418521,0.1792611,112600.0,112590.0,0.15308]
[1761703419994,0.55421593,112600.0,112590.0,0.15308]
[1761703420423,0.56924593,112600.0,112590.0,0.15308]
[1761703420981,0.58920593,112600.0,112590.0,0.12163]
[1761703421845,0.58920593,112600.0,112590.0,0.15275]
[1761703422064,1.04467677,112600.0,112590.0,0.03767]
[1761703422253,0.17765144,112580.0,112570.0,0.04742963]
[1761703422505,0.17765144,112580.0,112570.0,0.13138963]
[1761703422723,0.17786521,112580.0,112570.0,0.15309963]
[1761703423606,0.17786521,112580.0,112570.0,0.15409963]
[1761703424022,0.17786521,112580.0,112570.0,0.15609963]
[1761703424650,0.17786521,112580.0,112570.0,0.15509963]
[1761703425090,0.57278004,112580.0,112570.0,0.15509963]
[1761703425294,0.57622004,112580.0,112570.0,0.15509963]
[1761703425505,0.18130521,112580.0,112570.0,0.15309963]
[1761703425918,0.18130521,112580.0,112570.0,0.15409963]
[1761703426332,0.65360761,112580.0,112570.0,0.12297963]
[1761703426518,0.65360761,112580.0,112570.0,0.08508963]
[1761703427346,0.65360761,112580.0,112570.0,0.10679963]
[1761703427551,0.65360761,112580.0,112570.0,0.08508963]
[1761703427756,0.68528761,112580.0,112570.0,0.08508963]
[1761703428820,1.06024244,112580.0,112570.0,0.00112963]
[1761703429249,0.63364761,112580.0,112570.0,0.03779963]
[1761703429459,0.55626004,112580.0,112570.0,0.03779963]
[1761703429674,0.55726004,112580.0,112570.0,0.06891963]
[1761703430370,0.98385487,112580.0,112570.0,0.00012963]
[1761703431268,1.10985616,112580.0,112570.0,0.00012963]
[1761703431515,1.19967517,112580.0,112570.0,0.00012963]
[1761703431722,1.22635785,112580.0,112570.0,0.00012963]
[1761703435606,0.69372173,112580.0,112570.0,0.02183963]
[1761703435818,0.17886521,112580.0,112570.0,0.06891963]
[1761703436018,0.17886521,112580.0,112570.0,0.08668635]
[1761703437136,0.57722004,112580.0,112570.0,0.00012963]
[1761703437341,0.60890004,112580.0,112570.0,0.00012963]
[1761703437544,0.69105165,112580.0,112570.0,0.00012963]
[1761703439949,0.57722004,112580.0,112570.0,0.03779963]
[1761703440149,0.57722004,112580.0,112570.0,0.06891963]
[1761703440647,0.18230521,112580.0,112570.0,0.06891963]
[1761703440855,0.55382004,112580.0,112570.0,0.06891963]
[1761703441254,0.17886521,112580.0,112570.0,0.06891963]
[1761703441675,0.19882521,112580.0,112570.0,0.06891963]
[1761703442134,0.19882521,112580.0,112570.0,0.08668635]
[1761703442344,0.00668477,112580.0,112570.0,0.03779963]
[1761703442549,0.18433621,112580.0,112570.0,0.03779963]
[1761703443269,0.18109144,112580.0,112570.0,0.06891963]
[1761703446365,0.18109144,112580.0,112570.0,0.05295963]
[1761703446743,0.20249144,112580.0,112570.0,0.05295963]
[1761703448111,0.20237644,112580.0,112570.0,0.05295963]
[1761703449761,0.18097644,112580.0,112570.0,0.05295963]
[1761703449916,0.17765144,112580.0,112570.0,0.25528709]
[1761703450122,0.17765144,112580.0,112570.0,0.31458685]
[1761703454662,0.18593566,112590.0,112570.0,0.31458685]
[1761703454866,0.17765144,112580.0,112570.0,0.27758722]
[1761703455254,0.17765144,112580.0,112570.0,0.29824722]
[1761703455455,0.17765144,112580.0,112570.0,0.33001722]
[1761703456774,0.17765144,112580.0,112570.0,0.33101722]
[1761703458380,0.17763566,112590.0,112570.0,0.33101722]
[1761703458587,0.17763566,112590.0,112580.0,0.08638514]
[1761703458945,0.17763566,112590.0,112580.0,0.26403658]
[1761703459180,0.17763566,112590.0,112580.0,0.24627144]
[1761703459606,0.18650088,112600.0,112580.0,0.24627144]
[1761703459796,0.17763566,112590.0,112580.0,0.28366045]
[1761703459964,0.17763566,112590.0,112580.0,0.36758045]
[1761703460174,0.17763566,112590.0,112580.0,0.38824045]
[1761703460375,0.17763566,112590.0,112580.0,0.42001045]
[1761703461211,0.17763566,112590.0,112580.0,0.42101045]
[1761703463046,0.17763566,112590.0,112580.0,0.24335901]
[1761703463256,0.17763566,112590.0,112580.0,0.42101045]
[1761703464138,0.17763566,112590.0,112580.0,0.24335901]
[1761703464366,0.17784941,112590.0,112580.0,0.42101045]
[1761703464780,0.17784941,112590.0,112580.0,0.24335901]
[1761703465867,0.17784941,112590.0,112580.0,0.42101045]
[1761703466266,0.17784941,112590.0,112580.0,0.24335901]
[1761703466840,0.17784941,112590.0,112580.0,0.42101045]
[1761703467283,0.17784941,112590.0,112580.0,0.24335901]
[1761703469214,0.17784941,112590.0,112580.0,0.42101045]
[1761703478669,0.00021375,112590.0,112580.0,0.42101045]
[1761703478884,0.00021375,112590.0,112580.0,1.13621162]
[1761703479340,0.00021375,112590.0,112580.0,0.76101045]
[1761703482131,0.00021375,112590.0,112580.0,0.84511045]
[1761703486373,0.17784941,112590.0,112580.0,0.84511045]
[1761703486816,0.55305058,112590.0,112580.0,0.58353901]
[1761703487030,0.55305058,112590.0,112580.0,0.5776]
[1761703487895,0.55305058,112590.0,112580.0,0.4935]
[1761703488127,0.55305058,112590.0,112580.0,0.06962]
[1761703488338,0.58172058,112590.0,112580.0,0.1535]
[1761703488750,0.56135058,112590.0,112580.0,0.1535]
[1761703491723,0.58172058,112590.0,112580.0,0.1535]
[1761703492621,0.58172058,112590.0,112580.0,0.06962]
[1761703493051,0.58172058,112590.0,112580.0,0.1535]
[1761703493266,0.58172058,112590.0,112580.0,0.12173]
[1761703493474,0.58172058,112590.0,112580.0,0.15147]
[1761703493690,0.56135058,112590.0,112580.0,0.15147]
[1761703494529,0.58172058,112590.0,112580.0,0.15147]
[1761703494721,0.59313845,112590.0,112580.0,0.15147]
[1761703497540,0.57276845,112590.0,112580.0,0.15147]
[1761703497758,0.59313845,112590.0,112580.0,0.15147]
[1761703498409,0.58172058,112590.0,112580.0,0.15147]
[1761703498612,0.56135058,112590.0,112580.0,0.15147]
[1761703501483,1.02320403,112590.0,112580.0,0.001]
[1761703502140,1.0423714,112590.0,112580.0,0.001]
[1761703502580,0.17765144,112580.0,112570.0,0.09984]
[1761703502794,0.57322261,112580.0,112570.0,0.11922]
[1761703503216,0.66304162,112580.0,112570.0,0.11922]
[1761703503426,1.03836927,112580.0,112570.0,0.11922]
[1761703503647,1.06846927,112580.0,112570.0,0.08388]
[1761703504937,0.97865026,112580.0,112570.0,0.08388]
[1761703505577,0.94855026,112580.0,112570.0,0.08388]
[1761703505778,0.94855026,112580.0,112570.0,0.10326]
[1761703507003,0.94855026,112580.0,112570.0,0.11824]
[1761703507621,0.17765144,112580.0,112570.0,0.14824]
[1761703507820,0.55291585,112580.0,112570.0,0.14824]
[1761703510643,0.17765144,112580.0,112570.0,0.14824]
[1761703510848,0.55291585,112580.0,112570.0,0.14824]
[1761703511230,0.57297585,112580.0,112570.0,0.11824]
[1761703511634,0.94824026,112580.0,112570.0,0.11824]
[1761703511816,0.99288889,112580.0,112570.0,0.11824]
[1761703514291,0.99288889,112580.0,112570.0,0.09886]
[1761703514493,0.17766722,112570.0,112560.0,0.04596]
[1761703514665,0.58002163,112570.0,112560.0,0.11813]
[1761703514897,0.55975163,112570.0,112560.0,0.11813]
[1761703515080,0.55975163,112570.0,112560.0,0.14745]
[1761703516053,0.55975163,112570.0,112560.0,0.14945]
[1761703516602,0.18448722,112570.0,112560.0,0.14945]
[1761703516805,0.55975163,112570.0,112560.0,0.14945]
[1761703518567,0.62959299,112570.0,112560.0,0.14945]
[1761703520400,0.64986299,112570.0,112560.0,0.12013]
[1761703520790,0.27459858,112570.0,112560.0,0.14945]
[1761703520962,0.62959299,112570.0,112560.0,0.14945]
[1761703521578,0.58002163,112570.0,112560.0,0.10184]
[1761703521911,0.58002163,112570.0,112560.0,0.09984]
[1761703522122,0.17768301,112560.0,112550.0,0.46961]
[1761703522339,0.98901183,112560.0,112550.0,0.0841]
[1761703522984,0.1776988,112550.0,112540.0,0.12866]
[1761703523194,0.55296321,112550.0,112540.0,0.12866]
[1761703523417,0.58153321,112550.0,112540.0,0.14695]
[1761703524275,0.58153321,112550.0,112520.0,0.04491678]
[1761703524276,0.17773038,112530.0,112520.0,0.04491678]
[1761703524525,0.17773038,112530.0,112520.0,0.55876166]
[1761703524641,0.17773038,112530.0,112520.0,0.57705166]
[1761703525613,0.17773038,112530.0,112520.0,0.23705166]
[1761703525774,0.17773038,112530.0,112520.0,0.24005166]
[1761703526396,0.17773038,112530.0,112520.0,0.24105166]
[1761703528756,0.55299479,112530.0,112520.0,0.24105166]
[1761703529543,0.58008479,112530.0,112520.0,0.15023265]
[1761703529959,0.58008479,112530.0,112520.0,0.12091265]
[1761703530186,0.58008479,112530.0,112520.0,0.11791265]
[1761703530838,0.60751479,112530.0,112520.0,0.09962265]
[1761703531042,0.6973338,112530.0,112520.0,0.09962265]
[1761703531650,0.29463939,112530.0,112520.0,0.11791265]
[1761703531855,0.58008479,112530.0,112520.0,0.11791265]
[1761703532452,0.60715931,112530.0,112520.0,0.08568265]
[1761703532653,0.60715931,112530.0,112520.0,0.00180265]
[1761703541850,0.60915931,112530.0,112520.0,0.00180265]
[1761703542055,0.2338949,112530.0,112520.0,0.00180265]
[1761703542282,0.60915931,112530.0,112520.0,0.00180265]
[1761703543306,0.1793749,112530.0,112520.0,0.43805706]
[1761703543521,0.1793749,112530.0,112520.0,0.06279265]
[1761703543736,0.1985249,112530.0,112520.0,0.11954265]
[1761703544725,0.57178931,112530.0,112520.0,0.11954265]
[1761703544930,0.59855931,112530.0,112520.0,0.08568265]
[1761703545148,0.59855931,112530.0,112520.0,0.00180265]
[1761703545359,0.68837832,112530.0,112520.0,0.00180265]
[1761703547600,1.06364273,112530.0,112520.0,0.00180265]
[1761703547819,0.68837832,112530.0,112520.0,0.00180265]
[1761703548028,0.59855931,112530.0,112520.0,0.00180265]
[1761703548201,0.60055931,112530.0,112520.0,0.00180265]
[1761703548419,0.61967413,112530.0,112520.0,0.00180265]
[1761703549233,0.62797369,112530.0,112520.0,0.00180265]
[1761703551017,0.25270928,112530.0,112520.0,0.00180265]
[1761703551225,0.62797369,112530.0,112520.0,0.00180265]
[1761703551449,0.62798111,112530.0,112520.0,0.00180265]
[1761703551985,0.66867502,112530.0,112520.0,0.00180265]
[1761703553376,0.69261252,112530.0,112520.0,0.00180265]
[1761703554664,1.06787693,112530.0,112520.0,0.00180265]
[1761703555019,0.69261252,112530.0,112520.0,0.00180265]
[1761703555919,0.65191861,112530.0,112520.0,0.00180265]
[1761703557023,0.62798111,112530.0,112520.0,0.00180265]
[1761703557222,0.2259467,112530.0,112520.0,0.00180265]
[1761703557468,0.60121111,112530.0,112520.0,0.00180265]
[1761703558454,0.62798111,112530.0,112520.0,0.00180265]
[1761703559347,0.60121111,112530.0,112520.0,0.02099265]
[1761703559764,0.62798111,112530.0,112520.0,0.00180265]
[1761703560606,0.61406065,112530.0,112520.0,0.00180265]
[1761703560979,0.67021862,112530.0,112520.0,0.00180265]
[1761703562387,0.67023669,112530.0,112520.0,0.00180265]
[1761703562585,1.17912652,112530.0,112520.0,0.00180265]
[1761703562835,1.55439093,112530.0,112520.0,0.00180265]
[1761703563336,1.17951138,112530.0,112520.0,0.00180265]
[1761703564136,1.55516065,112530.0,112520.0,0.00180265]
[1761703564347,1.17951138,112530.0,112520.0,0.00180265]
[1761703564826,1.11452694,112530.0,112520.0,0.00180265]
[1761703568299,0.73887767,112530.0,112520.0,0.00180265]
[1761703568469,1.11452694,112530.0,112520.0,0.00180265]
[1761703569379,0.73887767,112530.0,112520.0,0.00180265]
[1761703569593,1.10078694,112530.0,112520.0,0.00180265]
[1761703570469,0.70723361,112530.0,112520.0,0.06368265]
[1761703570875,0.67973038,112530.0,112520.0,0.06368265]
[1761703571418,1.15822866,112530.0,112520.0,0.03409265]
[1761703571616,1.15622866,112530.0,112520.0,0.06078483]
[1761703571868,1.06640965,112530.0,112520.0,0.06078483]
[1761703572035,1.06640965,112530.0,112520.0,0.02849483]
[1761703572374,1.0986249,112530.0,112520.0,0.02849483]
[1761703573702,1.47427417,112530.0,112520.0,0.02849483]
[1761703573832,1.59639294,112530.0,112520.0,0.02849483]
[1761703574044,1.68621195,112530.0,112520.0,0.00180265]
[1761703574466,1.31056268,112530.0,112520.0,0.00180265]
[1761703574863,1.22074367,112530.0,112520.0,0.00180265]
[1761703575073,1.22274367,112530.0,112520.0,0.00180265]
[1761703575284,1.18574095,112530.0,112520.0,0.00180265]
[1761703575503,0.69891563,112530.0,112520.0,0.03409265]
[1761703575704,1.0875949,112530.0,112520.0,0.03409265]
[1761703576048,0.69891563,112530.0,112520.0,0.06368265]
[1761703576355,1.08759713,112530.0,112520.0,0.06368265]
[1761703576574,1.06840965,112530.0,112520.0,0.06368265]
[1761703577011,0.67973038,112530.0,112520.0,0.06368265]
[1761703578017,0.69276038,112530.0,112520.0,0.06368265]
[1761703578215,1.06840965,112530.0,112520.0,0.03409265]
[1761703580352,1.06840965,112530.0,112520.0,0.06078573]
[1761703580590,1.05537965,112530.0,112520.0,0.09037573]
[1761703581424,0.67973038,112530.0,112520.0,0.09037573]
[1761703581856,0.69276038,112530.0,112520.0,0.09037573]
[1761703582489,0.67973038,112530.0,112520.0,0.09037573]
[1761703582873,0.69186038,112530.0,112520.0,0.06078573]
[1761703583092,1.05337965,112530.0,112520.0,0.08986573]
[1761703583885,0.67773038,112530.0,112520.0,0.08986573]
[1761703590518,0.68986038,112530.0,112520.0,0.06078573]
[1761703590917,0.68986038,112530.0,112520.0,0.08986573]
[1761703592250,0.67773038,112530.0,112520.0,0.08986573]
[1761703593491,0.68986038,112530.0,112520.0,0.06078573]
[1761703593691,1.06550965,112530.0,112520.0,0.06078573]
[1761703595200,0.67773038,112530.0,112520.0,0.08986573]
[1761703595664,0.67773038,112530.0,112520.0,0.17374573]
[1761703600581,0.5,112530.0,112520.0,0.74491578]
[1761703600801,0.5,112530.0,112520.0,0.72714117]
[1761703601462,0.5,112530.0,112520.0,0.44131091]
[1761703601637,0.5,112530.0,112520.0,1.15696018]
[1761703602478,0.5,112530.0,112520.0,1.15896018]
[1761703602890,0.5,112530.0,112520.0,1.15696018]
[1761703603253,0.5,112530.0,112520.0,1.15996018]
[1761703603826,0.5,112530.0,112520.0,1.16096018]
[1761703607608,0.5,112530.0,112520.0,1.53660945]
[1761703607811,0.5,112530.0,112520.0,1.57279173]
[1761703608881,0.5,112530.0,112520.0,1.66389172]
[1761703609082,0.5,112530.0,112520.0,1.67389171]
[1761703609289,0.5,112530.0,112520.0,1.69189171]
[1761703609539,0.5,112530.0,112520.0,1.69089171]
[1761703609994,0.5,112530.0,112520.0,1.69489171]
[1761703610208,0.5,112530.0,112520.0,1.67689171]
[1761703610484,0.5,112530.0,112520.0,1.69289171]
[1761703610698,0.5,112530.0,112520.0,1.69689171]
[1761703611888,0.5,112530.0,112520.0,1.68689172]
[1761703612128,0.5,112530.0,112520.0,1.69689171]
[1761703619053,0.5,112530.0,112520.0,1.68689172]
[1761703619257,0.5,112530.0,112520.0,1.69689171]
[1761703619834,0.4159,112530.0,112520.0,1.85709171]
[1761703622026,0.4159,112530.0,112520.0,1.76321172]
[1761703622176,0.4159,112530.0,112520.0,1.46136246]
[1761703622393,0.4159,112530.0,112520.0,1.49659504]
[1761703622574,0.4159,112530.0,112520.0,1.46136246]
[1761703624241,0.4159,112530.0,112520.0,1.37756246]
[1761703624446,0.4159,112530.0,112520.0,1.42518018]
[1761703624643,0.4109,112530.0,112520.0,1.42518018]
[1761703625445,0.4109,112530.0,112520.0,1.80024609]
[1761703625679,0.4109,112530.0,112520.0,1.55594609]
[1761703625795,0.4109,112530.0,112520.0,1.47214609]
[1761703626017,0.4109,112530.0,112520.0,1.55594609]
[1761703626846,0.4109,112530.0,112520.0,1.55194609]
[1761703627067,0.4109,112530.0,112520.0,1.55494609]
[1761703627513,0.4109,112530.0,112520.0,1.53494609]
[1761703627728,0.4109,112530.0,112520.0,1.54394609]
[1761703628314,0.4109,112530.0,112520.0,1.90930368]
[1761703628549,0.4109,112530.0,112520.0,1.95448596]
[1761703629165,0.4109,112530.0,112520.0,1.96448595]
[1761703629382,0.4109,112530.0,112520.0,1.95548595]
[1761703630022,0.4109,112530.0,112520.0,1.95348595]
[1761703630345,0.4109,112530.0,112520.0,1.95748595]
[1761703630750,0.4109,112530.0,112520.0,1.97248595]
[1761703630957,0.4059,112530.0,112520.0,1.95348595]
[1761703631181,0.4059,112530.0,112520.0,1.95748595]
[1761703631432,0.4059,112530.0,112520.0,2.30842595]
[1761703631635,0.4059,112530.0,112520.0,2.32942595]
[1761703631837,0.4059,112530.0,112520.0,2.30273287]
[1761703639919,1e-08,112530.0,112520.0,2.31273286]
[1761703640127,1e-08,112530.0,112520.0,2.68809045]
[1761703640336,1e-08,112530.0,112520.0,2.71476654]
[1761703642585,1e-08,112530.0,112520.0,2.33940895]
[1761703643143,1e-08,112530.0,112520.0,2.32940896]
[1761703643671,1e-08,112530.0,112520.0,2.33940895]
[1761703644099,1e-08,112530.0,112520.0,2.14896895]
[1761703644306,1e-08,112530.0,112520.0,2.33940895]
[1761703645483,1e-08,112530.0,112520.0,2.32940896]
[1761703645703,1e-08,112530.0,112520.0,2.33940895]
[1761703646867,1e-08,112530.0,112520.0,2.32940896]
[1761703647069,1e-08,112530.0,112520.0,2.33940895]
[1761703649942,0.56213493,112590.0,112570.0,0.16169615]
[1761703650204,0.56213493,112590.0,112580.0,0.13456514]
[1761703650410,0.56213493,112590.0,112580.0,0.16277514]
[1761703651174,0.56218356,112590.0,112580.0,0.16277514]
[1761703651378,0.56318356,112590.0,112580.0,0.16277514]
[1761703651609,0.56218356,112590.0,112580.0,0.16277514]
[1761703651976,0.56318356,112590.0,112580.0,0.16277514]
[1761703653881,0.18777982,112590.0,112580.0,0.69801903]
[1761703654109,0.18777982,112590.0,112580.0,0.32266144]
[1761703655113,0.01014416,112590.0,112580.0,0.32266144]
[1761703655312,0.17889804,112590.0,112580.0,0.32266144]
[1761703655785,0.17889804,112590.0,112580.0,0.14501]
[1761703656224,0.17789804,112590.0,112580.0,0.14501]
[1761703656620,0.17789804,112590.0,112580.0,0.14601]
[1761703657886,0.55325563,112590.0,112580.0,0.14601]
[1761703658294,0.17789804,112590.0,112580.0,0.14601]
[1761703659339,0.17789804,112590.0,112580.0,0.13001]
[1761703662500,0.17789804,112590.0,112580.0,0.30766144]
[1761703662893,0.17789804,112590.0,112580.0,0.13001]
[1761703671272,0.62715102,112590.0,112580.0,0.13001]
[1761703671479,0.55325563,112590.0,112580.0,0.13001]
[1761703672129,0.55325563,112590.0,112580.0,0.04621]
[1761703672349,0.55325563,112590.0,112580.0,0.12997]
[1761703672566,0.59105581,112600.0,112580.0,0.12997]
[1761703672802,0.55299325,112590.0,112580.0,0.12997]
[1761703673036,0.60717325,112590.0,112580.0,0.08476]
[1761703673321,0.57717325,112590.0,112580.0,0.1034]
[1761703673536,0.57717325,112590.0,112580.0,0.14694]
[1761703673952,0.55763325,112590.0,112580.0,0.14694]
[1761703675433,0.55299325,112590.0,112580.0,0.14694]
[1761703675617,0.55399325,112590.0,112580.0,0.14694]
[1761703681993,0.55863325,112590.0,112580.0,0.14694]
[1761703684352,0.55399325,112590.0,112580.0,0.32459144]
[1761703684562,0.55399325,112590.0,112580.0,0.14694]
[1761703685475,0.55377835,112590.0,112580.0,0.14694]
[1761703686234,0.17863566,112590.0,112580.0,0.14694]
[1761703687037,0.55377835,112590.0,112580.0,0.32459144]
[1761703687249,0.17863566,112590.0,112580.0,0.32459144]
[1761703691776,0.17863566,112590.0,112580.0,0.14694]
[1761703692416,0.17863566,112590.0,112580.0,0.32459144]
[1761703704510,0.17863566,112590.0,112580.0,0.14694]
[1761703704908,0.55377835,112590.0,112580.0,0.32459144]
[1761703705504,0.55377835,112590.0,112580.0,0.14694]
[1761703709807,0.53527498,112590.0,112580.0,0.14694]
[1761703711408,0.55567498,112590.0,112580.0,0.11708]
[1761703711615,0.59062498,112590.0,112580.0,0.08376]
[1761703711823,0.56079498,112590.0,112580.0,0.10266]
[1761703712255,0.56079498,112590.0,112580.0,0.11724]
[1761703712497,0.56079498,112590.0,112580.0,0.14645]
[1761703713520,0.54039498,112590.0,112580.0,0.14645]
[1761703714731,0.54015962,112590.0,112580.0,0.14645]
[1761703715111,0.56055962,112590.0,112580.0,0.11724]
[1761703715309,0.18275566,112590.0,112580.0,0.32410144]
[1761703715511,0.55789835,112590.0,112580.0,0.32410144]
[1761703718654,0.00512,112590.0,112580.0,0.32410144]
[1761703719084,0.18275566,112590.0,112580.0,0.32410144]
[1761703719528,0.20186566,112590.0,112580.0,0.11724]
[1761703719731,0.20186566,112590.0,112580.0,0.14833]
[1761703719859,0.55789835,112590.0,112580.0,0.14833]
[1761703720688,0.55789835,112590.0,112580.0,0.13237]
[1761703722112,0.18275566,112590.0,112580.0,0.31002144]
[1761703722887,0.17763566,112590.0,112580.0,0.31002144]
[1761703725101,0.17763566,112590.0,112580.0,0.13237]
[1761703726921,0.57795835,112590.0,112580.0,0.10128]
[1761703727861,0.57795835,112590.0,112580.0,0.13237]
[1761703728271,0.64656004,112590.0,112580.0,0.13237]
[1761703728672,0.57795835,112590.0,112580.0,0.31002144]
[1761703729292,0.20281566,112590.0,112580.0,0.13237]
[1761703730629,0.18370566,112590.0,112580.0,0.13237]
[1761703735162,0.20281566,112590.0,112580.0,0.10128]
[1761703735739,0.20281566,112590.0,112580.0,0.13237]
[1761703735943,0.57795835,112590.0,112580.0,0.1172]
[1761703736346,0.57795835,112590.0,112580.0,0.14829]
[1761703737114,0.18370566,112590.0,112580.0,0.32594144]
[1761703737614,0.17763566,112590.0,112580.0,0.32594144]
[1761703738916,0.17763566,112590.0,112580.0,0.14829]
[1761703740741,0.57188835,112590.0,112580.0,0.14829]
[1761703740902,0.57795835,112590.0,112580.0,0.14829]
[1761703741303,0.57795835,112590.0,112580.0,0.1172]
[1761703741926,0.57795835,112590.0,112580.0,0.08372]
[1761703742149,0.60905835,112590.0,112580.0,0.08372]
[1761703742609,0.57795835,112590.0,112580.0,0.10455]
[1761703743235,0.66010161,112590.0,112580.0,0.10455]
[1761703744446,0.57795835,112590.0,112580.0,0.12009]
[1761703744700,0.57795835,112590.0,112580.0,0.15118]
[1761703746275,0.17765144,112580.0,112570.0,0.09777]
[1761703746478,0.17766722,112570.0,112560.0,0.01198]
[1761703746637,0.17768301,112560.0,112550.0,0.56961532]
[1761703746841,0.5528257,112560.0,112550.0,0.74320296]
[1761703747119,0.5795157,112560.0,112550.0,0.57748764]
[1761703747532,0.57973311,112560.0,112550.0,0.57748764]
[1761703748034,0.57973311,112560.0,112550.0,0.75518644]
[1761703748155,0.95509321,112560.0,112550.0,0.11657863]
[1761703748367,0.98522321,112560.0,112550.0,0.09574863]
[1761703748574,0.95509321,112560.0,112550.0,0.09574863]
[1761703748931,0.95509321,112560.0,112550.0,0.11464863]
[1761703749289,1.07269222,112560.0,112550.0,0.01202863]
[1761703749484,0.98287321,112560.0,112550.0,0.09674863]
[1761703750092,0.57973311,112560.0,112550.0,0.11638863]
[1761703751619,0.95509321,112560.0,112550.0,0.08476863]
[1761703751796,0.98287321,112560.0,112550.0,0.08476863]
[1761703752996,0.97413532,112560.0,112550.0,0.08476863]
[1761703753209,0.98703846,112560.0,112550.0,0.08476863]
[1761703753644,1.01372314,112560.0,112550.0,0.08476863]
[1761703753795,1.00082,112560.0,112550.0,0.08476863]
[1761703754197,1.00987237,112560.0,112550.0,0.08476863]
[1761703754598,1.00082,112560.0,112550.0,0.08476863]
[1761703754932,1.00082,112560.0,112550.0,0.00104863]
[1761703755318,1.00082,112560.0,112550.0,4.863e-05]
[1761703756469,1.09063901,112560.0,112550.0,4.863e-05]
[1761703758271,1.00082,112560.0,112550.0,4.863e-05]
[1761703777229,1.02000039,112560.0,112550.0,4.863e-05]
[1761703778291,1.02200039,112560.0,112550.0,4.863e-05]
[1761703782396,1.03033265,112560.0,112550.0,4.863e-05]
[1761703784271,1.02200039,112560.0,112550.0,4.863e-05]
[1761703784477,1.12016946,112560.0,112550.0,4.863e-05]
[1761703791097,1.11183702,112560.0,112550.0,4.863e-05]
[1761703792056,1.02201801,112560.0,112550.0,4.863e-05]
[1761703792482,0.5530589,112550.0,112540.0,0.01405]
[1761703792667,0.57273831,112550.0,112540.0,0.03341]
[1761703795326,0.57273831,112550.0,112540.0,0.06245]
[1761703795762,0.55318831,112550.0,112540.0,0.06245]
[1761703798576,0.57273831,112550.0,112540.0,0.03341]
[1761703800940,0.57273831,112550.0,112530.0,0.1283]
[1761703800941,0.17773038,112530.0,112520.0,0.38623678]
[1761703801135,0.55309048,112530.0,112520.0,0.46995678]
[1761703801388,0.17773038,112530.0,112520.0,0.40559678]
[1761703801569,0.98002058,112530.0,112520.0,0.00165678]
[1761703801777,1.07263847,112530.0,112520.0,0.00165678]
[1761703801986,1.09933172,112530.0,112520.0,0.00165678]
[1761703802410,1.09933172,112530.0,112520.0,0.00365678]
[1761703802638,1.09933172,112530.0,112520.0,0.00165678]
[1761703803049,1.10133172,112530.0,112520.0,0.00165678]
[1761703803241,1.08214034,112530.0,112520.0,0.00165678]
[1761703803454,1.17195935,112530.0,112520.0,0.00165678]
[1761703804800,0.23625363,112530.0,112520.0,0.02101678]
[1761703805006,0.19001038,112530.0,112520.0,0.06410678]
[1761703805213,0.58475048,112530.0,112520.0,0.06410678]
[1761703805886,0.58475048,112530.0,112520.0,0.03506678]
[1761703806109,0.19001038,112530.0,112520.0,0.06410678]
[1761703806806,0.56537048,112530.0,112520.0,0.06410678]
[1761703806967,0.58435048,112530.0,112520.0,0.06410678]
[1761703807181,0.58435048,112530.0,112520.0,0.03506678]
[1761703807382,0.69354949,112530.0,112520.0,0.00165678]
[1761703808889,0.69154949,112530.0,112520.0,0.00165678]